bitfinex/quotes_SOLUSD_20241226
["timestamp","ask_amount","ask_price","bid_price","bid_amount"]
[1735211723932,15.08615699,189.49,189.43,15.08615699]
[1735211724134,15.08615699,189.49,189.42,15.08615699]
[1735211724748,15.08615699,189.48,189.42,15.08615699]
[1735211724908,15.08615699,189.48,189.41,15.08615699]
[1735211725111,15.08615699,189.47,189.41,15.08615699]
[1735211725529,15.08615699,189.47,189.4,15.08615699]
[1735211728336,15.08615699,189.46,189.39,15.08615699]
[1735211729035,15.08615699,189.45,189.38,15.08615699]
[1735211729440,15.08615699,189.42,189.36,28.28785699]
[1735211729938,15.08615699,189.42,189.36,13.2017]
[1735211730110,15.08615699,189.41,189.35,15.08615699]
[1735211730314,15.08615699,189.42,189.35,15.08615699]
[1735211733138,15.08615699,189.39,189.33,15.08615699]
[1735211734320,21.67805699,189.4,189.33,15.08615699]
[1735211734519,21.67805699,189.4,189.34,15.08615699]
[1735211735190,21.67805699,189.4,189.33,15.08615699]
[1735211735441,15.08615699,189.39,189.32,15.08615699]
[1735211736644,21.67805699,189.4,189.32,15.08615699]
[1735211737836,15.08615699,189.39,189.32,15.08615699]
[1735211738260,16.25184728,189.4,189.32,9.65994728]
[1735211739169,6.5919,189.4,189.32,9.65994728]
[1735211741066,16.25184728,189.4,189.33,9.65994728]
[1735211742580,16.25184728,189.4,189.31,9.65994728]
[1735211745059,6.5919,189.4,189.31,9.65994728]
[1735211745737,6.5919,189.4,189.3,0.12549]
[1735211745738,6.5919,189.4,189.33,9.65994728]
[1735211745942,6.5919,189.4,189.35,9.65994728]
[1735211746165,6.5919,189.4,189.36,9.65994728]
[1735211746466,6.5919,189.4,189.35,9.65994728]
[1735211748854,6.5919,189.4,189.36,9.65994728]
[1735211750566,6.5919,189.4,189.35,9.65994728]
[1735211750878,6.10431924,189.4,189.35,9.65994728]
[1735211752073,15.76426652,189.4,189.32,13.2051]
[1735211752242,15.76426652,189.4,189.33,9.65994728]
[1735211752643,9.65994728,189.39,189.33,9.65994728]
[1735211753579,6.10431924,189.4,189.35,22.86294728]
[1735211753961,6.10431924,189.4,189.36,9.65994728]
[1735211754692,9.65994728,189.39,189.32,22.86504728]
[1735211755665,9.65994728,189.38,189.31,9.65994728]
[1735211756604,9.65994728,189.38,189.29,13.2071]
[1735211756770,9.65994728,189.38,189.31,9.65994728]
[1735211758391,9.65994728,189.39,189.32,9.65994728]
[1735211759005,6.10431924,189.4,189.34,9.65994728]
[1735211759301,6.10431924,189.4,189.33,9.65994728]
[1735211759493,15.76426652,189.4,189.33,9.65994728]
[1735211759680,6.10431924,189.4,189.33,9.65994728]
[1735211759873,6.10431924,189.4,189.34,9.65994728]
[1735211763099,9.65994728,189.38,189.31,13.2058]
[1735211763269,9.65994728,189.36,189.28,13.2077]
[1735211763473,9.65994728,189.35,189.28,13.2077]
[1735211763676,9.65994728,189.34,189.28,22.86764728]
[1735211764790,1.6313,189.39,189.29,9.65994728]
[1735211765091,9.65994728,189.36,189.3,9.65994728]
[1735211765470,9.65994728,189.36,189.29,9.65994728]
[1735211765697,6.4899,189.33,189.27,20.0]
[1735211765888,6.4899,189.33,189.29,9.65994728]
[1735211766692,28.86502668,189.36,189.3,9.65994728]
[1735211766889,28.86502668,189.36,189.32,9.65994728]
[1735211767087,28.86502668,189.36,189.34,9.65994728]
[1735211768600,28.86502668,189.36,189.29,13.2071]
[1735211768780,28.86502668,189.36,189.31,9.65994728]
[1735211768971,28.86502668,189.36,189.32,9.65994728]
[1735211770297,28.86502668,189.36,189.3,0.12549]
[1735211770496,38.52497396,189.36,189.29,22.86704728]
[1735211770676,9.65994728,189.35,189.29,13.2071]
[1735211771777,9.65994728,189.33,189.27,29.65994728]
[1735211772190,9.65994728,189.34,189.28,9.65994728]
[1735211772511,9.65994728,189.34,189.27,29.65994728]
[1735211772720,9.65994728,189.33,189.26,22.86904728]
[1735211773391,1.6313,189.32,189.26,13.2091]
[1735211773593,11.29124728,189.32,189.23,13.33669]
[1735211773799,11.29124728,189.32,189.26,9.65994728]
[1735211774101,1.6313,189.32,189.26,9.65994728]
[1735211774307,9.65994728,189.3,189.23,13.2112]
[1735211774602,6.4899,189.31,189.25,9.65994728]
[1735211774788,6.4899,189.31,189.26,9.65994728]
[1735211774991,6.4899,189.31,189.28,9.65994728]
[1735211775784,6.4899,189.31,189.27,9.65994728]
[1735211776498,6.4899,189.31,189.25,13.21]
[1735211776702,6.4899,189.31,189.26,9.65994728]
[1735211777197,6.4899,189.31,189.25,13.21]
[1735211777387,6.4899,189.31,189.25,22.86994728]
[1735211778800,6.4899,189.31,189.26,9.65994728]
[1735211778999,6.4899,189.31,189.27,9.65994728]
[1735211779212,6.4899,189.31,189.28,9.65994728]
[1735211779513,9.65994728,189.35,189.28,9.65994728]
[1735211781608,9.65994728,189.34,189.27,9.65994728]
[1735211786528,35.40022668,189.36,189.28,9.65994728]
[1735211786689,9.65994728,189.35,189.28,9.65994728]
[1735211788134,9.65994728,189.34,189.27,9.65994728]
[1735211789222,9.65994728,189.32,189.22,0.79238709]
[1735211789389,9.65994728,189.31,189.24,9.65994728]
[1735211789819,9.65994728,189.3,189.23,9.65994728]
[1735211790202,9.65994728,189.28,189.19,13.214]
[1735211790393,8.0569,189.29,189.19,13.214]
[1735211790394,9.65994728,189.27,189.2,9.65994728]
[1735211792594,9.65994728,189.26,189.2,9.65994728]
[1735211792931,9.65994728,189.26,189.19,9.65994728]
[1735211794334,9.65994728,189.26,189.2,9.65994728]
[1735211795619,8.0569,189.29,189.21,9.65994728]
[1735211795921,9.65994728,189.28,189.21,9.65994728]
[1735211796086,8.0569,189.29,189.22,9.65994728]
[1735211796285,9.65994728,189.28,189.22,9.65994728]
[1735211796812,9.65994728,189.28,189.21,9.65994728]
[1735211797006,9.65994728,189.27,189.18,13.2142]
[1735211797194,9.65994728,189.27,189.2,9.65994728]
[1735211799822,9.65994728,189.28,189.21,9.65994728]
[1735211799999,9.65994728,189.28,189.19,0.12549]
[1735211800203,9.65994728,189.28,189.21,9.65994728]
[1735211803937,9.65994728,189.27,189.2,9.65994728]
[1735211804727,9.65994728,189.27,189.19,0.12549]
[1735211804906,9.65994728,189.27,189.2,9.65994728]
[1735211805102,9.65994728,189.26,189.19,9.65994728]
[1735211806922,9.65994728,189.27,189.2,9.65994728]
[1735211807423,9.65994728,189.28,189.21,9.65994728]
[1735211808029,9.65994728,189.27,189.2,9.65994728]
[1735211821430,9.65994728,189.28,189.21,9.65994728]
[1735211821631,8.0569,189.29,189.23,9.65994728]
[1735211821825,8.0569,189.29,189.25,9.65994728]
[1735211822028,6.5352,189.29,189.26,9.65994728]
[1735211822229,6.5352,189.29,189.27,9.65994728]
[1735211822423,11.24694728,189.33,189.23,0.12549]
[1735211822424,17.28584728,189.33,189.23,0.12549]
[1735211822741,17.28584728,189.33,189.27,9.65994728]
[1735211823132,7.6259,189.33,189.27,9.65994728]
[1735211824217,7.6259,189.33,189.28,9.65994728]
[1735211824419,7.6259,189.33,189.3,9.65994728]
[1735211825260,6.0389,189.33,189.3,9.65994728]
[1735211825613,28.86502668,189.36,189.31,9.65994728]
[1735211825820,28.86502668,189.36,189.32,9.65994728]
[1735211826313,28.86502668,189.36,189.34,9.65994728]
[1735211826722,28.86502668,189.36,189.33,9.65994728]
[1735211827423,28.86502668,189.36,189.34,9.65994728]
[1735211829035,28.86502668,189.36,189.33,9.65994728]
[1735211830738,28.86502668,189.36,189.32,9.65994728]
[1735211831440,28.86502668,189.36,189.3,0.12549]
[1735211831640,38.52497396,189.36,189.27,21.5972]
[1735211831943,38.52497396,189.36,189.29,9.65994728]
[1735211832330,28.86502668,189.36,189.29,9.65994728]
[1735211832643,38.52497396,189.36,189.29,9.65994728]
[1735211837439,28.86502668,189.36,189.29,9.65994728]
[1735211838239,40.14497396,189.36,189.29,9.65994728]
[1735211839527,40.14497396,189.36,189.3,9.65994728]
[1735211839528,30.48502668,189.36,189.3,9.65994728]
[1735211842146,28.86502668,189.36,189.33,9.65994728]
[1735211843252,28.86502668,189.36,189.32,9.65994728]
[1735211843653,28.86502668,189.36,189.33,9.65994728]
[1735211843950,28.86502668,189.36,189.3,13.206]
[1735211844134,28.86502668,189.36,189.35,9.65994728]
[1735211844937,1.62,189.46,189.36,23.902374]
[1735211845131,1.62,189.46,189.4,9.65994728]
[1735211846142,11.27994728,189.46,189.39,9.65994728]
[1735211848859,1.62,189.46,189.4,9.65994728]
[1735211851765,48.32899909,189.47,189.4,9.65994728]
[1735211852262,38.66905181,189.47,189.41,9.65994728]
[1735211854457,38.66905181,189.47,189.4,9.65994728]
[1735211854638,48.32899909,189.47,189.4,9.65994728]
[1735211856960,48.32899909,189.47,189.37,13.2016]
[1735211857171,9.65994728,189.46,189.38,0.12549]
[1735211857343,9.65994728,189.46,189.39,9.65994728]
[1735211860168,48.32899909,189.47,189.41,9.65994728]
[1735211860359,38.66905181,189.47,189.41,9.65994728]
[1735211860665,32.08755181,189.47,189.44,9.65994728]
[1735211862176,32.08755181,189.47,189.46,9.65994728]
[1735211863748,6.2898,189.51,189.46,9.65994728]
[1735211864882,6.2898,189.51,189.44,0.12549]
[1735211865089,6.2898,189.51,189.46,9.65994728]
[1735211865756,9.65994728,189.53,189.46,9.65994728]
[1735211866689,17.89446223,189.54,189.47,9.65994728]
[1735211866893,17.89446223,189.54,189.48,9.65994728]
[1735211867055,16.25896223,189.54,189.49,9.65994728]
[1735211868474,16.25896223,189.54,189.51,9.65994728]
[1735211868678,6.3898,189.6,189.49,13.1929]
[1735211868679,16.04974728,189.6,189.53,9.65994728]
[1735211868856,6.3898,189.6,189.55,9.65994728]
[1735211869596,11.32004728,189.62,189.56,9.65994728]
[1735211870994,6.3898,189.64,189.57,9.65994728]
[1735211871160,9.65994728,189.63,189.57,9.65994728]
[1735211871495,6.3898,189.64,189.59,9.65994728]
[1735211871687,50.13563496,189.65,189.6,9.65994728]
[1735211872284,9.65994728,189.64,189.58,9.65994728]
[1735211872595,9.65994728,189.63,189.57,9.65994728]
[1735211876205,9.65994728,189.61,189.53,13.1899]
[1735211876407,9.65994728,189.61,189.54,9.65994728]
[1735211877405,50.13563496,189.65,189.56,9.65994728]
[1735211877587,9.65994728,189.62,189.56,9.65994728]
[1735211878193,9.65994728,189.62,189.55,9.65994728]
[1735211879305,9.65994728,189.62,189.56,9.65994728]
[1735211880413,9.65994728,189.63,189.56,9.65994728]
[1735211880711,9.65994728,189.63,189.57,9.65994728]
[1735211881070,9.65994728,189.62,189.55,9.65994728]
[1735211881375,9.65994728,189.62,189.56,9.65994728]
[1735211882209,9.65994728,189.62,189.55,9.65994728]
[1735211882417,9.65994728,189.61,189.54,9.65994728]
[1735211883299,9.65994728,189.61,189.55,9.65994728]
[1735211884017,6.4244,189.62,189.56,9.65994728]
[1735211884316,16.08434728,189.62,189.55,9.65994728]
[1735211885608,6.4244,189.62,189.56,9.65994728]
[1735211886520,6.4244,189.62,189.57,9.65994728]
[1735211887402,6.4244,189.62,189.58,9.65994728]
[1735211888691,9.65994728,189.65,189.58,9.65994728]
[1735211890482,6.4244,189.66,189.59,9.65994728]
[1735211890696,9.65994728,189.65,189.59,9.65994728]
[1735211891226,6.4244,189.66,189.6,9.65994728]
[1735211891524,6.4244,189.66,189.61,9.65994728]
[1735211894190,9.65994728,189.69,189.62,9.65994728]
[1735211895226,6.4244,189.71,189.64,9.65994728]
[1735211895525,6.4244,189.71,189.66,9.65994728]
[1735211898241,6.4244,189.71,189.67,9.65994728]
[1735211898408,6.4244,189.71,189.66,9.65994728]
[1735211898827,16.08434728,189.71,189.65,9.65994728]
[1735211899335,16.08434728,189.71,189.63,13.1834]
[1735211899527,9.65994728,189.7,189.6,13.97617308]
[1735211899733,9.65994728,189.7,189.63,9.65994728]
[1735211899930,9.65994728,189.7,189.64,9.65994728]
[1735211900547,16.08434728,189.71,189.64,9.65994728]
[1735211900911,16.08434728,189.71,189.65,9.65994728]
[1735211901211,16.08434728,189.71,189.64,9.65994728]
[1735211902243,16.08434728,189.71,189.61,0.12549]
[1735211902244,9.65994728,189.7,189.63,9.65994728]
[1735211902703,6.4244,189.71,189.63,9.65994728]
[1735211902909,9.65994728,189.69,189.62,9.65994728]
[1735211904456,9.65994728,189.69,189.64,0.12549]
[1735211904658,6.4244,189.71,189.65,9.65994728]
[1735211905461,6.4244,189.71,189.66,9.65994728]
[1735211906061,6.4244,189.71,189.67,9.65994728]
[1735211906430,32.04211555,189.74,189.71,0.12549]
[1735211906760,32.04211555,189.74,189.72,9.65994728]
[1735211907056,32.04211555,189.74,189.69,9.65994728]
[1735211907252,32.04211555,189.74,189.68,9.65994728]
[1735211907625,41.70206283,189.74,189.67,9.65994728]
[1735211909965,32.04211555,189.74,189.67,9.65994728]
[1735211910164,41.70206283,189.74,189.67,9.65994728]
[1735211912469,9.65994728,189.73,189.66,9.65994728]
[1735211913237,41.70206283,189.74,189.67,9.65994728]
[1735211913770,41.70206283,189.74,189.66,9.65994728]
[1735211914853,15.83464728,189.72,189.65,9.65994728]
[1735211916255,6.1747,189.72,189.66,9.65994728]
[1735211917057,6.1747,189.72,189.65,9.65994728]
[1735211918259,6.1747,189.72,189.66,9.65994728]
[1735211918437,6.1747,189.72,189.67,9.65994728]
[1735211918638,32.04211555,189.74,189.67,9.65994728]
[1735211918839,41.70206283,189.74,189.67,9.65994728]
[1735211919247,32.04211555,189.74,189.68,9.65994728]
[1735211919445,32.04211555,189.74,189.64,0.12549]
[1735211919446,32.04211555,189.74,189.69,9.65994728]
[1735211919647,32.04211555,189.74,189.68,9.65994728]
[1735211920252,41.70206283,189.74,189.67,9.65994728]
[1735211920459,9.65994728,189.73,189.65,13.1821]
[1735211920653,9.65994728,189.72,189.65,22.84204728]
[1735211920958,9.65994728,189.73,189.66,9.65994728]
[1735211922443,9.65994728,189.67,189.53,1.6235]
[1735211922637,9.65994728,189.65,189.58,9.65994728]
[1735211922838,9.65994728,189.66,189.59,9.65994728]
[1735211923041,9.65994728,189.67,189.6,9.65994728]
[1735211923240,3.47808639,189.7,189.6,9.65994728]
[1735211923439,9.65994728,189.68,189.6,9.65994728]
[1735211923732,9.65994728,189.69,189.62,9.65994728]
[1735211924160,3.94521596,189.71,189.62,9.65994728]
[1735211924465,9.65994728,189.71,189.64,9.65994728]
[1735211925438,7.8238,189.72,189.64,0.12549]
[1735211925643,9.65994728,189.71,189.64,9.65994728]
[1735211926256,9.65994728,189.7,189.64,0.12549]
[1735211926542,9.65994728,189.71,189.64,9.78543728]
[1735211929445,9.65994728,189.69,189.6,13.1853]
[1735211929647,9.65994728,189.67,189.57,13.1875]
[1735211929868,9.65994728,189.67,189.59,9.65994728]
[1735211930073,9.65994728,189.66,189.59,9.65994728]
[1735211930426,9.65994728,189.65,189.54,13.98077593]
[1735211930681,15.75824728,189.64,189.57,9.65994728]
[1735211931479,6.0983,189.64,189.58,9.65994728]
[1735211932874,15.75824728,189.64,189.57,29.65994728]
[1735211933848,15.75824728,189.64,189.57,9.65994728]
[1735211934562,9.65994728,189.63,189.54,13.1897]
[1735211934797,11.31254728,189.63,189.56,9.65994728]
[1735211936561,9.65994728,189.62,189.55,9.65994728]
[1735211936880,9.65994728,189.62,189.54,9.65994728]
[1735211937194,9.65994728,189.59,189.52,9.65994728]
[1735211938094,9.65994728,189.58,189.51,9.65994728]
[1735211938261,9.65994728,189.59,189.52,9.65994728]
[1735211938456,9.65994728,189.59,189.5,20.0]
[1735211938457,9.07590235,189.63,189.55,9.65994728]
[1735211938661,1.6526,189.63,189.57,9.65994728]
[1735211938979,1.6526,189.63,189.58,9.65994728]
[1735211940375,1.6526,189.63,189.57,9.65994728]
[1735211940575,11.31254728,189.63,189.56,9.65994728]
[1735211949311,11.31254728,189.63,189.54,13.1895]
[1735211949493,11.31254728,189.63,189.56,9.65994728]
[1735211952302,11.31254728,189.63,189.55,9.65994728]
[1735211952303,9.65994728,189.61,189.55,9.65994728]
[1735211952503,9.65994728,189.58,189.51,22.85164728]
[1735211952930,9.65994728,189.58,189.48,14.8217]
[1735211953205,9.65994728,189.56,189.49,9.65994728]
[1735211953393,6.4829,189.55,189.49,9.65994728]
[1735211956710,6.1276,189.6,189.53,9.65994728]
[1735211956906,15.78754728,189.6,189.53,9.65994728]
[1735211957105,9.65994728,189.59,189.53,9.65994728]
[1735211957413,9.65994728,189.58,189.52,9.78543728]
[1735211958812,9.65994728,189.59,189.53,9.65994728]
[1735211959015,6.1276,189.6,189.54,9.65994728]
[1735211959319,6.1276,189.6,189.55,9.65994728]
[1735211959502,6.1276,189.6,189.54,9.65994728]
[1735211959816,15.78754728,189.6,189.53,9.65994728]
[1735211963518,6.1276,189.6,189.54,9.65994728]
[1735211965517,6.1276,189.6,189.52,0.12549]
[1735211965728,15.78754728,189.6,189.54,9.65994728]
[1735211966818,9.65994728,189.59,189.53,9.65994728]
[1735211969312,15.78754728,189.6,189.54,9.65994728]
[1735211972018,6.1276,189.6,189.54,9.65994728]
[1735211972935,15.78754728,189.6,189.53,9.65994728]
[1735211974422,9.65994728,189.59,189.53,9.65994728]
[1735211975222,9.65994728,189.59,189.52,9.78543728]
[1735211976918,9.65994728,189.59,189.51,13.1916]
[1735211977225,9.65994728,189.58,189.51,22.85154728]
[1735211977927,9.65994728,189.58,189.51,9.65994728]
[1735211983032,9.65994728,189.57,189.5,9.65994728]
[1735211985338,9.65994728,189.58,189.52,9.65994728]
[1735211985537,6.1276,189.6,189.57,9.65994728]
[1735211985836,8.27327887,189.64,189.59,9.65994728]
[1735211986139,17.93322615,189.64,189.58,9.65994728]
[1735211987140,9.65994728,189.63,189.57,9.65994728]
[1735211987927,9.65994728,189.64,189.58,9.65994728]
[1735211988123,9.65994728,189.64,189.59,9.65994728]
[1735211988325,31.50374962,189.68,189.63,9.65994728]
[1735211988521,31.50374962,189.68,189.65,9.65994728]
[1735211989543,9.65994728,189.67,189.58,13.1867]
[1735211989720,9.65994728,189.67,189.61,9.65994728]
[1735211991840,41.1636969,189.68,189.62,9.65994728]
[1735211994443,9.65994728,189.67,189.61,9.65994728]
[1735211996118,9.65994728,189.67,189.6,9.65994728]
[1735211997640,9.65994728,189.65,189.56,23.776884]
[1735211997986,9.65994728,189.63,189.56,9.65994728]
[1735211998331,31.50374962,189.68,189.55,13.1889]
[1735211998531,9.65994728,189.63,189.57,9.65994728]
[1735211998843,9.65994728,189.64,189.57,9.65994728]
[1735211999353,8.27327887,189.73,189.64,23.902374]
[1735211999541,8.27327887,189.73,189.71,9.65994728]
[1735212000252,6.4635,189.74,189.7,9.65994728]
[1735212001234,6.4635,189.74,189.61,13.97487926]
[1735212001557,9.65994728,189.73,189.66,9.65994728]
[1735212001752,9.65994728,189.73,189.67,9.65994728]
[1735212002053,47.93516114,189.74,189.68,9.65994728]
[1735212002850,9.65994728,189.72,189.66,9.65994728]
[1735212004553,9.65994728,189.71,189.65,9.65994728]
[1735212007251,38.27521386,189.74,189.66,9.65994728]
[1735212007454,38.27521386,189.74,189.68,9.65994728]
[1735212007656,38.27521386,189.74,189.7,9.65994728]
[1735212009962,38.27521386,189.74,189.73,9.65994728]
[1735212009963,31.81171386,189.74,189.73,9.65994728]
[1735212010337,31.81171386,189.74,189.71,9.65994728]
[1735212010839,31.81171386,189.74,189.67,1.5327]
[1735212011048,31.81171386,189.74,189.69,9.65994728]
[1735212011358,31.81171386,189.74,189.7,9.65994728]
[1735212013461,9.65994728,189.76,189.7,9.65994728]
[1735212016161,9.65994728,189.75,189.7,9.65994728]
[1735212016558,9.65994728,189.76,189.7,9.65994728]
[1735212016943,9.65994728,189.77,189.71,9.65994728]
[1735212017146,6.0944,189.79,189.71,9.65994728]
[1735212017447,9.65994728,189.77,189.71,9.65994728]
[1735212018171,9.65994728,189.76,189.7,9.65994728]
[1735212018471,9.65994728,189.77,189.71,9.65994728]
[1735212018640,9.65994728,189.76,189.7,9.65994728]
[1735212019463,9.65994728,189.77,189.71,9.65994728]
[1735212021360,6.0944,189.79,189.72,9.65994728]
[1735212021537,9.65994728,189.78,189.72,9.65994728]
[1735212024165,9.65994728,189.76,189.7,9.65994728]
[1735212024466,9.65994728,189.76,189.67,23.902374]
[1735212024763,9.65994728,189.76,189.71,9.65994728]
[1735212024966,9.65994728,189.76,189.7,9.65994728]
[1735212026368,9.65994728,189.77,189.71,9.65994728]
[1735212027264,38.12673505,189.79,189.71,9.65994728]
[1735212027465,9.65994728,189.77,189.71,9.65994728]
[1735212027763,9.65994728,189.78,189.72,9.65994728]
[1735212028065,32.03233505,189.79,189.74,9.65994728]
[1735212028769,41.69228233,189.79,189.74,9.65994728]
[1735212030567,32.03233505,189.79,189.74,9.65994728]
[1735212030867,9.65994728,189.78,189.72,9.65994728]
[1735212031570,9.65994728,189.78,189.73,9.65994728]
[1735212031747,41.69228233,189.79,189.73,9.65994728]
[1735212036874,9.65994728,189.78,189.72,9.65994728]
[1735212037378,9.65994728,189.77,189.69,1.5435]
[1735212037673,9.65994728,189.77,189.67,23.776884]
[1735212037674,9.65994728,189.77,189.71,9.65994728]
[1735212038048,9.65994728,189.75,189.69,9.65994728]
[1735212038254,9.65994728,189.73,189.65,1.5752]
[1735212038473,9.65994728,189.71,189.65,9.65994728]
[1735212038776,9.65994728,189.69,189.63,9.65994728]
[1735212038970,9.65994728,189.68,189.62,9.65994728]
[1735212039974,9.65994728,189.68,189.63,9.65994728]
[1735212040571,9.65994728,189.69,189.63,9.65994728]
[1735212041589,20.0,189.72,189.63,9.65994728]
[1735212041758,9.65994728,189.69,189.63,9.65994728]
[1735212041958,9.65994728,189.66,189.56,1.5676]
[1735212042267,9.65994728,189.64,189.58,9.65994728]
[1735212044659,9.65994728,189.64,189.57,9.65994728]
[1735212045185,9.65994728,189.63,189.57,9.65994728]
[1735212046079,9.65994728,189.65,189.59,9.65994728]
[1735212046278,20.0,189.68,189.59,9.65994728]
[1735212046578,9.65994728,189.66,189.59,9.65994728]
[1735212048083,9.65994728,189.65,189.59,9.65994728]
[1735212048266,20.0,189.68,189.58,9.65994728]
[1735212048267,9.65994728,189.64,189.58,9.65994728]
[1735212048462,9.65994728,189.63,189.57,9.65994728]
[1735212049374,9.65994728,189.64,189.58,9.65994728]
[1735212049576,9.65994728,189.65,189.59,9.65994728]
[1735212051685,20.0,189.68,189.59,9.65994728]
[1735212051886,9.65994728,189.65,189.59,9.65994728]
[1735212052189,20.0,189.68,189.59,9.65994728]
[1735212052483,9.65994728,189.65,189.59,9.65994728]
[1735212054497,9.65994728,189.64,189.58,9.65994728]
[1735212054891,9.65994728,189.63,189.58,9.65994728]
[1735212055282,9.65994728,189.63,189.55,13.189]
[1735212055488,9.65994728,189.63,189.57,9.65994728]
[1735212055987,9.65994728,189.63,189.58,9.65994728]
[1735212057288,20.0,189.68,189.6,9.65994728]
[1735212057585,9.65994728,189.65,189.59,9.65994728]
[1735212057789,7.857,189.71,189.62,9.65994728]
[1735212058010,7.857,189.71,189.64,9.65994728]
[1735212058011,9.65994728,189.7,189.64,9.65994728]
[1735212058164,7.857,189.71,189.64,9.65994728]
[1735212058165,9.65994728,189.69,189.64,9.65994728]
[1735212059193,9.65994728,189.69,189.63,9.65994728]
[1735212060503,9.65994728,189.68,189.62,9.65994728]
[1735212061497,9.65994728,189.69,189.62,9.65994728]
[1735212063808,117.37391697,189.78,189.67,9.65994728]
[1735212063809,7.6794,189.76,189.67,9.65994728]
[1735212063974,9.65994728,189.75,189.69,9.65994728]
[1735212065401,9.65994728,189.78,189.72,9.65994728]
[1735212066112,9.65994728,189.75,189.69,9.65994728]
[1735212068117,9.65994728,189.74,189.68,1.6494]
[1735212069286,9.65994728,189.74,189.68,11.30934728]
[1735212069482,9.65994728,189.77,189.7,9.65994728]
[1735212069797,9.65994728,189.77,189.71,9.65994728]
[1735212070993,41.69228233,189.79,189.72,9.65994728]
[1735212071194,41.69228233,189.79,189.73,9.65994728]
[1735212072502,41.69228233,189.79,189.72,9.65994728]
[1735212073698,9.65994728,189.77,189.7,33.56232128]
[1735212074005,9.65994728,189.77,189.71,9.65994728]
[1735212074189,9.65994728,189.78,189.72,9.65994728]
[1735212074991,9.65994728,189.77,189.71,9.65994728]
[1735212075295,9.65994728,189.75,189.69,22.83874728]
[1735212075688,9.65994728,189.73,189.66,13.1813]
[1735212075998,9.65994728,189.72,189.66,22.84124728]
[1735212076190,9.65994728,189.72,189.66,9.65994728]
[1735212076392,9.65994728,189.7,189.64,11.30934728]
[1735212076586,9.65994728,189.7,189.64,9.65994728]
[1735212076881,9.65994728,189.69,189.64,0.12549]
[1735212077082,9.65994728,189.7,189.64,9.78543728]
[1735212077300,9.65994728,189.7,189.64,9.65994728]
[1735212077504,9.65994728,189.68,189.62,9.65994728]
[1735212077706,9.65994728,189.67,189.61,9.65994728]
[1735212078008,9.65994728,189.65,189.59,9.65994728]
[1735212078905,9.65994728,189.67,189.61,9.65994728]
[1735212079103,20.0,189.72,189.63,9.65994728]
[1735212079403,9.65994728,189.69,189.62,9.65994728]
[1735212079784,6.0829,189.75,189.68,9.65994728]
[1735212079983,11.16884728,189.79,189.69,0.12549]
[1735212080189,16.53927478,189.79,189.73,15.03037478]
[1735212080903,1.5089,189.79,189.74,15.03037478]
[1735212081102,1.5089,189.79,189.73,15.03037478]
[1735212082085,6.4866,189.8,189.75,15.03037478]
[1735212082289,6.4866,189.8,189.7,0.12549]
[1735212082290,1.5089,189.84,189.76,15.03037478]
[1735212082480,15.03037478,189.82,189.76,15.03037478]
[1735212083090,15.03037478,189.83,189.77,15.03037478]
[1735212083296,16.53927478,189.84,189.77,15.03037478]
[1735212083798,15.03037478,189.84,189.77,15.03037478]
[1735212084982,15.03037478,189.81,189.75,15.03037478]
[1735212085183,15.03037478,189.79,189.72,15.03037478]
[1735212085792,15.03037478,189.75,189.67,1.616]
[1735212085987,15.03037478,189.76,189.7,15.03037478]
[1735212086388,15.03037478,189.77,189.7,15.03037478]
[1735212086689,15.03037478,189.76,189.67,1.616]
[1735212086894,15.03037478,189.75,189.69,15.03037478]
[1735212088311,15.03037478,189.76,189.7,15.03037478]
[1735212090926,15.03037478,189.76,189.69,15.03037478]
[1735212091086,15.03037478,189.74,189.68,15.03037478]
[1735212091415,15.03037478,189.73,189.67,16.64637478]
[1735212091720,15.03037478,189.73,189.66,15.03037478]
[1735212092830,15.03037478,189.71,189.65,15.03037478]
[1735212093034,15.03037478,189.73,189.67,15.03037478]
[1735212093216,15.03037478,189.74,189.68,15.03037478]
[1735212093420,14.75222715,189.74,189.68,15.03037478]
[1735212094029,15.03037478,189.73,189.67,15.03037478]
[1735212094431,15.03037478,189.72,189.66,15.03037478]
[1735212095560,15.03037478,189.73,189.67,15.03037478]
[1735212096310,15.03037478,189.72,189.66,15.03037478]
[1735212097134,15.03037478,189.73,189.67,15.03037478]
[1735212097433,15.03037478,189.73,189.66,15.03037478]
[1735212098637,15.03037478,189.72,189.62,1.6618]
[1735212098826,15.03037478,189.69,189.62,1.6618]
[1735212099034,23.776884,189.74,189.64,15.03037478]
[1735212099035,15.03037478,189.7,189.64,15.03037478]
[1735212099544,15.03037478,189.71,189.65,15.03037478]
[1735212101739,15.03037478,189.7,189.64,15.03037478]
[1735212108545,15.03037478,189.71,189.66,15.03037478]
[1735212108755,15.03037478,189.72,189.66,15.03037478]
[1735212108943,15.03037478,189.72,189.67,15.03037478]
[1735212111051,15.03037478,189.74,189.68,15.03037478]
[1735212111850,15.03037478,189.73,189.67,15.03037478]